[Event "Titled Tuesday Blitz March 14 Late 2023"]
[White "Kostiukov, Alexandr"]
[Black "Sreyas Payyappat"]
[WhiteFideId "14108100"]
[BlackFideId "46674969"]
[WhiteElo "2202"]
[BlackElo "2083"]
[Result "0-1"]
[Round "09"]
[TimeControl "180+2"]
[Date "2023.03.14"]
[WhiteClock "0:00:01"]
[BlackClock "0:00:09"]

1. g3 {[%clk 0:03:00]}  Nf6 {[%clk 0:02:55]} 2. Bg2 {[%clk 0:02:59]}  c5 {[%clk 0:02:56]} 3. c4 {[%clk 0:02:59]}  Nc6 {[%clk 0:02:55]} 4. Nf3 {[%clk 0:03:00]}  g6 {[%clk 0:02:55]} 5. O-O {[%clk 0:03:00]}  Bg7 {[%clk 0:02:55]} 6. d4 {[%clk 0:03:00]}  cxd4 {[%clk 0:02:56]} 7. Nxd4 {[%clk 0:03:01]}  h5 {[%clk 0:02:57]} 8. c5 {[%clk 0:02:54]}  h4 {[%clk 0:02:54]} 9. Nc3 {[%clk 0:02:52]}  hxg3 {[%clk 0:02:51]} 10. hxg3 {[%clk 0:02:51]}  Ng4 {[%clk 0:02:42]} 11. e3 {[%clk 0:02:28]}  Nxd4 {[%clk 0:02:22]} 12. exd4 {[%clk 0:02:19]}  d6 {[%clk 0:02:21]} 13. cxd6 {[%clk 0:01:42]}  Qxd6 {[%clk 0:02:22]} 14. Bf4 {[%clk 0:01:39]}  Qxd4 {[%clk 0:01:59]} 15. Nb5 {[%clk 0:01:16]}  Qxd1 {[%clk 0:01:37]} 16. Rfxd1 {[%clk 0:01:10]}  O-O {[%clk 0:01:17]} 17. Nc7 {[%clk 0:00:58]}  e5 {[%clk 0:01:16]} 18. Bg5 {[%clk 0:00:37]}  f6 {[%clk 0:01:02]} 19. Bd2 {[%clk 0:00:25]}  Rb8 {[%clk 0:00:29]} 20. Bb4 {[%clk 0:00:24]}  Rf7 {[%clk 0:00:26]} 21. Bd5 {[%clk 0:00:22]}  Bf5 {[%clk 0:00:23]} 22. Bxf7+ {[%clk 0:00:19]}  Kxf7 {[%clk 0:00:24]} 23. Nb5 {[%clk 0:00:17]}  Kg8 {[%clk 0:00:16]} 24. Nxa7 {[%clk 0:00:15]}  Ra8 {[%clk 0:00:13]} 25. Nb5 {[%clk 0:00:13]}  Be6 {[%clk 0:00:11]} 26. a3 {[%clk 0:00:12]}  Bc4 {[%clk 0:00:11]} 27. Nd6 {[%clk 0:00:11]}  Be2 {[%clk 0:00:10]} 28. Rd2 {[%clk 0:00:10]}  Bf3 {[%clk 0:00:10]} 29. Rd3 {[%clk 0:00:07]}  e4 {[%clk 0:00:10]} 30. Rd2 {[%clk 0:00:04]}  Bh6 {[%clk 0:00:10]} 31. Rc2 {[%clk 0:00:04]}  e3 {[%clk 0:00:10]} 32. fxe3 {[%clk 0:00:03]}  Bxe3+ {[%clk 0:00:11]} 33. Kf1 {[%clk 0:00:04]}  Bb6 {[%clk 0:00:11]} 34. Nc4 {[%clk 0:00:03]}  Bd4 {[%clk 0:00:10]} 35. Bc3 {[%clk 0:00:02]}  Bc5 {[%clk 0:00:10]} 36. Nd2 {[%clk 0:00:01]}  Ne3+ {[%clk 0:00:09]} 0-1


[Site "https://www.chess.com"]

[Event "Titled Tuesday Blitz March 14 Late 2023"]
[White "Bove, Alessandro"]
[Black "Allansdottir, Rakel Elaisa"]
[WhiteFideId "814121"]
[BlackFideId "2323974"]
[WhiteElo "2387"]
[BlackElo "2435"]
[Result "1-0"]
[Round "09"]
[TimeControl "180+2"]
[Date "2023.03.14"]
[WhiteClock "0:00:20"]
[BlackClock "0:00:06"]

1. d4 {[%clk 0:02:58]}  c5 {[%clk 0:02:58]} 2. Nf3 {[%clk 0:02:58]}  cxd4 {[%clk 0:02:56]} 3. Nxd4 {[%clk 0:02:59]}  Nc6 {[%clk 0:02:56]} 4. Nc3 {[%clk 0:02:58]}  d5 {[%clk 0:02:46]} 5. e4 {[%clk 0:02:54]}  dxe4 {[%clk 0:02:40]} 6. Bb5 {[%clk 0:02:47]}  Bd7 {[%clk 0:02:25]} 7. Bxc6 {[%clk 0:02:44]}  Bxc6 {[%clk 0:02:23]} 8. Nxc6 {[%clk 0:02:42]}  Qxd1+ {[%clk 0:02:14]} 9. Kxd1 {[%clk 0:02:41]}  bxc6 {[%clk 0:02:12]} 10. Nxe4 {[%clk 0:02:42]}  e5 {[%clk 0:02:08]} 11. Ke2 {[%clk 0:02:35]}  f5 {[%clk 0:02:04]} 12. Ng3 {[%clk 0:02:32]}  g6 {[%clk 0:02:02]} 13. b3 {[%clk 0:02:27]}  Bg7 {[%clk 0:01:48]} 14. Bb2 {[%clk 0:02:26]}  Kf7 {[%clk 0:01:48]} 15. Rhd1 {[%clk 0:02:23]}  Ke6 {[%clk 0:01:35]} 16. f4 {[%clk 0:01:58]}  Ne7 {[%clk 0:01:32]} 17. fxe5 {[%clk 0:01:51]}  Bxe5 {[%clk 0:01:32]} 18. Bxe5 {[%clk 0:01:51]}  Kxe5 {[%clk 0:01:32]} 19. Rd7 {[%clk 0:01:45]}  Ke6 {[%clk 0:01:15]} 20. Rd4 {[%clk 0:01:39]}  Nd5 {[%clk 0:01:11]} 21. c4 {[%clk 0:01:35]}  Nf6 {[%clk 0:00:59]} 22. Rad1 {[%clk 0:01:33]}  Rhe8 {[%clk 0:00:48]} 23. h3 {[%clk 0:01:21]}  Kf7+ {[%clk 0:00:39]} 24. Kf3 {[%clk 0:01:21]}  Re6 {[%clk 0:00:37]} 25. Ne2 {[%clk 0:00:59]}  Rae8 {[%clk 0:00:28]} 26. Nf4 {[%clk 0:00:57]}  Re3+ {[%clk 0:00:23]} 27. Kf2 {[%clk 0:00:57]}  g5 {[%clk 0:00:22]} 28. Nd3 {[%clk 0:00:51]}  Re2+ {[%clk 0:00:19]} 29. Kg1 {[%clk 0:00:50]}  Rxa2 {[%clk 0:00:17]} 30. Nc1 {[%clk 0:00:32]}  Rb2 {[%clk 0:00:14]} 31. Rd6 {[%clk 0:00:30]}  Re6 {[%clk 0:00:12]} 32. R6d3 {[%clk 0:00:27]}  Ne4 {[%clk 0:00:12]} 33. Rd7+ {[%clk 0:00:27]}  Re7 {[%clk 0:00:11]} 34. Rxe7+ {[%clk 0:00:25]}  Kxe7 {[%clk 0:00:11]} 35. Re1 {[%clk 0:00:26]}  Kd6 {[%clk 0:00:10]} 36. c5+ {[%clk 0:00:25]}  Kd5 {[%clk 0:00:09]} 37. Rf1 {[%clk 0:00:23]}  f4 {[%clk 0:00:09]} 38. h4 {[%clk 0:00:23]}  h6 {[%clk 0:00:09]} 39. hxg5 {[%clk 0:00:23]}  hxg5 {[%clk 0:00:09]} 40. Re1 {[%clk 0:00:22]}  Nxc5 {[%clk 0:00:09]} 41. Rd1+ {[%clk 0:00:20]}  Ke4 {[%clk 0:00:08]} 42. Re1+ {[%clk 0:00:19]}  Kf5 {[%clk 0:00:08]} 43. Ne2 {[%clk 0:00:19]}  Nd3 {[%clk 0:00:07]} 44. Nd4+ {[%clk 0:00:19]}  Kg4 {[%clk 0:00:06]} 45. Re8 {[%clk 0:00:20]}  Rb1+ {[%clk 0:00:06]} 46. Kh2 {[%clk 0:00:20]} 1-0


[Site "https://www.chess.com"]

[Event "Titled Tuesday Blitz March 14 Late 2023"]
[White "Romero Ruscalleda, Josep"]
[Black "Kielinkei"]
[WhiteFideId "2231859"]
[WhiteElo "2183"]
[BlackElo "2423"]
[Result "1-0"]
[Round "09"]
[TimeControl "180+2"]
[Date "2023.03.14"]
[WhiteClock "0:00:12"]
[BlackClock "0:00:14"]

1. e4 {[%clk 0:03:00]}  c5 {[%clk 0:02:57]} 2. c3 {[%clk 0:03:00]}  Nf6 {[%clk 0:02:55]} 3. e5 {[%clk 0:03:01]}  Nd5 {[%clk 0:02:55]} 4. Nf3 {[%clk 0:03:01]}  d6 {[%clk 0:02:52]} 5. Bc4 {[%clk 0:03:00]}  Nb6 {[%clk 0:02:50]} 6. e6 {[%clk 0:03:01]}  Nxc4 {[%clk 0:02:06]} 7. Qa4+ {[%clk 0:02:59]}  Nc6 {[%clk 0:01:53]} 8. exf7+ {[%clk 0:02:59]}  Kxf7 {[%clk 0:01:54]} 9. Qxc4+ {[%clk 0:02:59]}  e6 {[%clk 0:01:45]} 10. O-O {[%clk 0:02:53]}  Be7 {[%clk 0:01:45]} 11. Qf4+ {[%clk 0:02:46]}  Kg8 {[%clk 0:01:23]} 12. d4 {[%clk 0:02:40]}  cxd4 {[%clk 0:01:22]} 13. cxd4 {[%clk 0:02:40]}  Qf8 {[%clk 0:01:22]} 14. Qg3 {[%clk 0:02:34]}  Qf5 {[%clk 0:01:05]} 15. Nc3 {[%clk 0:02:33]}  Kf7 {[%clk 0:00:52]} 16. Re1 {[%clk 0:02:05]}  Rd8 {[%clk 0:00:49]} 17. Bg5 {[%clk 0:01:57]}  Kg8 {[%clk 0:00:39]} 18. d5 {[%clk 0:01:51]}  Bxg5 {[%clk 0:00:34]} 19. Qxg5 {[%clk 0:01:38]}  exd5 {[%clk 0:00:27]} 20. Qxf5 {[%clk 0:01:20]}  Bxf5 {[%clk 0:00:27]} 21. Nxd5 {[%clk 0:01:21]}  Re8 {[%clk 0:00:16]} 22. a3 {[%clk 0:01:10]}  Rac8 {[%clk 0:00:13]} 23. Nc3 {[%clk 0:01:03]}  Ne5 {[%clk 0:00:13]} 24. Nd4 {[%clk 0:01:01]}  Bg6 {[%clk 0:00:11]} 25. Ndb5 {[%clk 0:00:59]}  Nd3 {[%clk 0:00:10]} 26. Rxe8+ {[%clk 0:00:51]}  Rxe8 {[%clk 0:00:11]} 27. Nxd6 {[%clk 0:00:51]}  Re7 {[%clk 0:00:11]} 28. b4 {[%clk 0:00:47]}  Rd7 {[%clk 0:00:09]} 29. Ndb5 {[%clk 0:00:42]}  a6 {[%clk 0:00:09]} 30. Na7 {[%clk 0:00:39]}  Rc7 {[%clk 0:00:03]} 31. Nd5 {[%clk 0:00:36]}  Rc2 {[%clk 0:00:03]} 32. f3 {[%clk 0:00:31]}  Bf7 {[%clk 0:00:03]} 33. Ne3 {[%clk 0:00:24]}  Re2 {[%clk 0:00:03]} 34. Ng4 {[%clk 0:00:21]}  Nf4 {[%clk 0:00:03]} 35. g3 {[%clk 0:00:20]}  Nh3+ {[%clk 0:00:04]} 36. Kf1 {[%clk 0:00:19]}  Bc4 {[%clk 0:00:04]} 37. Ne3 {[%clk 0:00:05]}  Rxe3+ {[%clk 0:00:03]} 38. Kg2 {[%clk 0:00:06]}  Nf4+ {[%clk 0:00:01]} 39. gxf4 {[%clk 0:00:06]}  Re2+ {[%clk 0:00:02]} 40. Kg3 {[%clk 0:00:06]}  Re8 {[%clk 0:00:03]} 41. Rc1 {[%clk 0:00:06]}  b5 {[%clk 0:00:03]} 42. Nc6 {[%clk 0:00:06]}  Kf7 {[%clk 0:00:03]} 43. Ne5+ {[%clk 0:00:06]}  Ke6 {[%clk 0:00:03]} 44. Nxc4 {[%clk 0:00:06]}  bxc4 {[%clk 0:00:03]} 45. Rxc4 {[%clk 0:00:06]}  Kd5 {[%clk 0:00:03]} 46. Rc5+ {[%clk 0:00:06]}  Kd6 {[%clk 0:00:02]} 47. Ra5 {[%clk 0:00:05]}  Re2 {[%clk 0:00:02]} 48. Rxa6+ {[%clk 0:00:05]}  Kd5 {[%clk 0:00:03]} 49. Ra5+ {[%clk 0:00:05]}  Kc4 {[%clk 0:00:03]} 50. Rh5 {[%clk 0:00:04]}  Ra2 {[%clk 0:00:02]} 51. Rxh7 {[%clk 0:00:04]}  Rxa3 {[%clk 0:00:03]} 52. Rxg7 {[%clk 0:00:05]}  Kxb4 {[%clk 0:00:03]} 53. Kg4 {[%clk 0:00:04]}  Ra1 {[%clk 0:00:03]} 54. Rb7+ {[%clk 0:00:03]}  Kc5 {[%clk 0:00:03]} 55. h4 {[%clk 0:00:04]}  Kd6 {[%clk 0:00:04]} 56. Kf5 {[%clk 0:00:04]}  Rh1 {[%clk 0:00:03]} 57. Kg5 {[%clk 0:00:03]}  Ke6 {[%clk 0:00:04]} 58. f5+ {[%clk 0:00:03]}  Ke5 {[%clk 0:00:04]} 59. Rb5+ {[%clk 0:00:03]}  Kd6 {[%clk 0:00:04]} 60. f6 {[%clk 0:00:03]}  Ke6 {[%clk 0:00:05]} 61. Rb6+ {[%clk 0:00:02]}  Kf7 {[%clk 0:00:05]} 62. Rb7+ {[%clk 0:00:03]}  Kg8 {[%clk 0:00:05]} 63. Kg6 {[%clk 0:00:03]}  Rg1+ {[%clk 0:00:05]} 64. Kh6 {[%clk 0:00:03]}  Rg3 {[%clk 0:00:03]} 65. Rg7+ {[%clk 0:00:03]}  Rxg7 {[%clk 0:00:03]} 66. fxg7 {[%clk 0:00:03]}  Kf7 {[%clk 0:00:03]} 67. Kh7 {[%clk 0:00:04]}  Kf6 {[%clk 0:00:04]} 68. g8=Q {[%clk 0:00:05]}  Kf5 {[%clk 0:00:05]} 69. Qg7 {[%clk 0:00:06]}  Kf4 {[%clk 0:00:05]} 70. Qg6 {[%clk 0:00:07]}  Ke3 {[%clk 0:00:06]} 71. Qg5+ {[%clk 0:00:07]}  Kf2 {[%clk 0:00:07]} 72. Kg6 {[%clk 0:00:08]}  Ke2 {[%clk 0:00:06]} 73. Kf5 {[%clk 0:00:08]}  Kf2 {[%clk 0:00:07]} 74. Ke5 {[%clk 0:00:08]}  Ke2 {[%clk 0:00:08]} 75. Kd4 {[%clk 0:00:09]}  Kf2 {[%clk 0:00:09]} 76. Qe3+ {[%clk 0:00:09]}  Kg3 {[%clk 0:00:09]} 77. Ke4 {[%clk 0:00:09]}  Kh3 {[%clk 0:00:10]} 78. f4+ {[%clk 0:00:10]}  Kg2 {[%clk 0:00:11]} 79. f5 {[%clk 0:00:10]}  Kh2 {[%clk 0:00:11]} 80. f6 {[%clk 0:00:11]}  Kg2 {[%clk 0:00:12]} 81. f7 {[%clk 0:00:11]}  Kh2 {[%clk 0:00:13]} 82. f8=Q {[%clk 0:00:12]}  Kg2 {[%clk 0:00:14]} 83. Qff2+ {[%clk 0:00:12]}  Kh1 {[%clk 0:00:14]} 84. Qee1# {[%clk 0:00:12]} 1-0


[Site "https://www.chess.com"]

[Event "Titled Tuesday Blitz March 14 Late 2023"]
[White "Kohler, Aran"]
[Black "Davidson, Kevin"]
[WhiteFideId "1002856"]
[BlackFideId "2056810"]
[WhiteElo "2263"]
[BlackElo "2151"]
[Result "1-0"]
[Round "09"]
[TimeControl "180+2"]
[Date "2023.03.14"]
[WhiteClock "0:00:47"]
[BlackClock "0:00:01"]

1. Nf3 {[%clk 0:02:59]}  Nf6 {[%clk 0:02:57]} 2. d4 {[%clk 0:02:59]}  g6 {[%clk 0:02:56]} 3. c3 {[%clk 0:02:58]}  Bg7 {[%clk 0:02:55]} 4. Bg5 {[%clk 0:02:59]}  d6 {[%clk 0:02:50]} 5. Nbd2 {[%clk 0:02:59]}  h6 {[%clk 0:02:41]} 6. Bh4 {[%clk 0:02:58]}  O-O {[%clk 0:02:39]} 7. e3 {[%clk 0:02:56]}  Nc6 {[%clk 0:02:36]} 8. Bc4 {[%clk 0:02:52]}  e5 {[%clk 0:02:31]} 9. dxe5 {[%clk 0:02:48]}  dxe5 {[%clk 0:02:29]} 10. Qc2 {[%clk 0:02:40]}  Bf5 {[%clk 0:02:25]} 11. e4 {[%clk 0:02:36]}  Bd7 {[%clk 0:02:19]} 12. O-O-O {[%clk 0:02:33]}  Qe8 {[%clk 0:02:02]} 13. Bxf6 {[%clk 0:02:26]}  Bxf6 {[%clk 0:02:01]} 14. Nf1 {[%clk 0:02:25]}  Na5 {[%clk 0:01:12]} 15. Be2 {[%clk 0:02:14]}  Ba4 {[%clk 0:00:56]} 16. b3 {[%clk 0:02:13]}  Bb5 {[%clk 0:00:39]} 17. Bxb5 {[%clk 0:02:03]}  Qxb5 {[%clk 0:00:39]} 18. Rd5 {[%clk 0:02:00]}  Qa6 {[%clk 0:00:26]} 19. Ne3 {[%clk 0:01:51]}  Nc6 {[%clk 0:00:19]} 20. Rhd1 {[%clk 0:01:41]}  Rfe8 {[%clk 0:00:18]} 21. h4 {[%clk 0:01:40]}  Qa3+ {[%clk 0:00:16]} 22. Qb2 {[%clk 0:01:38]}  Qe7 {[%clk 0:00:16]} 23. g3 {[%clk 0:01:32]}  a5 {[%clk 0:00:16]} 24. Rd7 {[%clk 0:01:31]}  Qc5 {[%clk 0:00:15]} 25. Rxc7 {[%clk 0:01:29]}  a4 {[%clk 0:00:16]} 26. b4 {[%clk 0:01:27]}  Qb6 {[%clk 0:00:16]} 27. Rdd7 {[%clk 0:01:23]}  a3 {[%clk 0:00:16]} 28. Qb3 {[%clk 0:01:22]}  Nd8 {[%clk 0:00:14]} 29. Rxf7 {[%clk 0:01:19]}  Re6 {[%clk 0:00:08]} 30. Rh7 {[%clk 0:01:05]}  Rb8 {[%clk 0:00:02]} 31. Rcd7 {[%clk 0:00:56]}  Rc8 {[%clk 0:00:01]} 32. Kd2 {[%clk 0:00:48]}  Qc6 {[%clk 0:00:01]} 33. Nd5 {[%clk 0:00:47]} 1-0


[Site "https://www.chess.com"]

[Event "Titled Tuesday Blitz March 14 Late 2023"]
[White "Hoffmann, Asa"]
[Black "Khatena, Moshe"]
[WhiteFideId "2001470"]
[BlackFideId "2010461"]
[WhiteElo "2117"]
[BlackElo "2228"]
[Result "1-0"]
[Round "09"]
[TimeControl "180+2"]
[Date "2023.03.14"]
[WhiteClock "0:00:27"]
[BlackClock "0:00:07"]

1. d4 {[%clk 0:02:58]}  b5 {[%clk 0:02:58]} 2. e4 {[%clk 0:02:57]}  Bb7 {[%clk 0:02:58]} 3. Bd3 {[%clk 0:02:53]}  Nf6 {[%clk 0:02:58]} 4. Qe2 {[%clk 0:02:53]}  a6 {[%clk 0:02:57]} 5. Nd2 {[%clk 0:02:52]}  e6 {[%clk 0:02:55]} 6. Ngf3 {[%clk 0:02:52]}  d5 {[%clk 0:02:55]} 7. c3 {[%clk 0:02:50]}  c5 {[%clk 0:02:51]} 8. e5 {[%clk 0:02:48]}  Nfd7 {[%clk 0:02:51]} 9. O-O {[%clk 0:02:47]}  Nc6 {[%clk 0:02:51]} 10. Re1 {[%clk 0:02:41]}  Qb6 {[%clk 0:02:43]} 11. dxc5 {[%clk 0:02:33]}  Nxc5 {[%clk 0:02:43]} 12. Bc2 {[%clk 0:02:31]}  b4 {[%clk 0:02:41]} 13. c4 {[%clk 0:02:20]}  O-O-O {[%clk 0:02:18]} 14. cxd5 {[%clk 0:02:15]}  exd5 {[%clk 0:02:19]} 15. Nb3 {[%clk 0:02:11]}  Ne4 {[%clk 0:02:01]} 16. Be3 {[%clk 0:02:05]}  Qb5 {[%clk 0:01:51]} 17. Bd3 {[%clk 0:02:03]}  Qa4 {[%clk 0:01:50]} 18. Rac1 {[%clk 0:01:58]}  Kb8 {[%clk 0:01:50]} 19. Bxe4 {[%clk 0:01:38]}  dxe4 {[%clk 0:01:49]} 20. Ng5 {[%clk 0:01:38]}  Nxe5 {[%clk 0:01:45]} 21. Bf4 {[%clk 0:01:34]}  Bd6 {[%clk 0:01:44]} 22. Nc5 {[%clk 0:01:29]}  Qb5 {[%clk 0:01:33]} 23. Qxb5 {[%clk 0:01:23]}  axb5 {[%clk 0:01:32]} 24. Nxb7 {[%clk 0:01:18]}  Kxb7 {[%clk 0:01:30]} 25. Bxe5 {[%clk 0:01:18]}  Bxe5 {[%clk 0:01:29]} 26. Nxf7 {[%clk 0:01:18]}  Bxb2 {[%clk 0:01:22]} 27. Nxd8+ {[%clk 0:01:17]}  Rxd8 {[%clk 0:01:20]} 28. Rb1 {[%clk 0:01:15]}  Bc3 {[%clk 0:01:18]} 29. Rxe4 {[%clk 0:01:15]}  Rd2 {[%clk 0:01:18]} 30. g3 {[%clk 0:00:53]}  Rxa2 {[%clk 0:01:15]} 31. h4 {[%clk 0:00:48]}  Rd2 {[%clk 0:00:59]} 32. h5 {[%clk 0:00:45]}  h6 {[%clk 0:00:59]} 33. Re6 {[%clk 0:00:43]}  Rb2 {[%clk 0:00:40]} 34. Rxb2 {[%clk 0:00:41]}  Bxb2 {[%clk 0:00:39]} 35. Kf1 {[%clk 0:00:41]}  Bd4 {[%clk 0:00:35]} 36. Ke2 {[%clk 0:00:40]}  b3 {[%clk 0:00:35]} 37. Kd3 {[%clk 0:00:40]}  b2 {[%clk 0:00:34]} 38. Kc2 {[%clk 0:00:40]}  Bf6 {[%clk 0:00:34]} 39. f4 {[%clk 0:00:38]}  Kc7 {[%clk 0:00:34]} 40. g4 {[%clk 0:00:38]}  Kd7 {[%clk 0:00:33]} 41. Rb6 {[%clk 0:00:37]}  Kc7 {[%clk 0:00:23]} 42. Rxb5 {[%clk 0:00:36]}  Kc6 {[%clk 0:00:24]} 43. Rf5 {[%clk 0:00:36]}  Kd6 {[%clk 0:00:24]} 44. g5 {[%clk 0:00:36]}  Bd4 {[%clk 0:00:24]} 45. Ra5 {[%clk 0:00:29]}  Ke6 {[%clk 0:00:20]} 46. Rb5 {[%clk 0:00:28]}  Kf7 {[%clk 0:00:07]} 47. Kd3 {[%clk 0:00:27]} 1-0


[Site "https://www.chess.com"]

[Event "Titled Tuesday Blitz March 14 Late 2023"]
[White "Salgado Lopez, Ivan"]
[Black "Rego, Pedro Filipe"]
[WhiteFideId "2257327"]
[BlackFideId "1904310"]
[WhiteElo "2571"]
[BlackElo "2193"]
[Result "0-1"]
[Round "09"]
[TimeControl "180+2"]
[Date "2023.03.14"]
[WhiteClock "0:00:02"]
[BlackClock "0:00:31"]

1. d4 {[%clk 0:03:00]}  Nf6 {[%clk 0:02:57]} 2. Bg5 {[%clk 0:03:00]}  d5 {[%clk 0:02:55]} 3. e3 {[%clk 0:02:59]}  c5 {[%clk 0:02:55]} 4. Bxf6 {[%clk 0:02:45]}  gxf6 {[%clk 0:02:56]} 5. dxc5 {[%clk 0:02:42]}  e5 {[%clk 0:02:55]} 6. Nf3 {[%clk 0:02:26]}  Bxc5 {[%clk 0:02:53]} 7. c4 {[%clk 0:02:24]}  Be6 {[%clk 0:02:50]} 8. cxd5 {[%clk 0:02:18]}  Qxd5 {[%clk 0:02:51]} 9. Nc3 {[%clk 0:02:11]}  Qxd1+ {[%clk 0:02:51]} 10. Rxd1 {[%clk 0:02:11]}  Nc6 {[%clk 0:02:51]} 11. Bb5 {[%clk 0:01:58]}  Rg8 {[%clk 0:02:50]} 12. g3 {[%clk 0:01:42]}  Rd8 {[%clk 0:02:48]} 13. Rxd8+ {[%clk 0:01:36]}  Kxd8 {[%clk 0:02:47]} 14. O-O {[%clk 0:01:31]}  Kc7 {[%clk 0:02:34]} 15. Rc1 {[%clk 0:01:29]}  Be7 {[%clk 0:02:30]} 16. e4 {[%clk 0:01:19]}  Rd8 {[%clk 0:02:23]} 17. Nh4 {[%clk 0:01:10]}  Kb6 {[%clk 0:02:15]} 18. Bxc6 {[%clk 0:00:56]}  bxc6 {[%clk 0:02:16]} 19. b3 {[%clk 0:00:34]}  Rd2 {[%clk 0:02:13]} 20. Nf5 {[%clk 0:00:25]}  Ba3 {[%clk 0:02:04]} 21. Rd1 {[%clk 0:00:18]}  Rxd1+ {[%clk 0:01:57]} 22. Nxd1 {[%clk 0:00:18]}  Bb4 {[%clk 0:01:49]} 23. Kf1 {[%clk 0:00:18]}  c5 {[%clk 0:01:49]} 24. Nfe3 {[%clk 0:00:14]}  Kc6 {[%clk 0:01:42]} 25. Ke2 {[%clk 0:00:14]}  Ba5 {[%clk 0:01:37]} 26. Kd3 {[%clk 0:00:15]}  Bc7 {[%clk 0:01:21]} 27. Nc3 {[%clk 0:00:14]}  Bd8 {[%clk 0:01:18]} 28. Ncd5 {[%clk 0:00:13]}  f5 {[%clk 0:01:11]} 29. f3 {[%clk 0:00:11]}  Bg5 {[%clk 0:01:09]} 30. Nc4 {[%clk 0:00:10]}  fxe4+ {[%clk 0:00:49]} 31. fxe4 {[%clk 0:00:08]}  f6 {[%clk 0:00:49]} 32. Nce3 {[%clk 0:00:07]}  a5 {[%clk 0:00:41]} 33. Ne7+ {[%clk 0:00:07]}  Kd7 {[%clk 0:00:40]} 34. N7f5 {[%clk 0:00:08]}  a4 {[%clk 0:00:38]} 35. h4 {[%clk 0:00:08]}  Bxe3 {[%clk 0:00:37]} 36. Nxe3 {[%clk 0:00:06]}  axb3 {[%clk 0:00:37]} 37. axb3 {[%clk 0:00:07]}  Bxb3 {[%clk 0:00:37]} 38. Ng4 {[%clk 0:00:06]}  Ke6 {[%clk 0:00:36]} 39. Ne3 {[%clk 0:00:06]}  Ba2 {[%clk 0:00:36]} 40. Kc3 {[%clk 0:00:06]}  Bb1 {[%clk 0:00:32]} 41. Nc2 {[%clk 0:00:02]}  Bxc2 {[%clk 0:00:30]} 42. Kxc2 {[%clk 0:00:02]}  f5 {[%clk 0:00:31]} 0-1


[Site "https://www.chess.com"]

[Event "Titled Tuesday Blitz March 14 Late 2023"]
[White "Mickiewicz, Piotr"]
[Black "Sabar, Ethmane Daouda"]
[WhiteFideId "1114891"]
[BlackFideId "19600097"]
[WhiteElo "2246"]
[BlackElo "1950"]
[Result "1-0"]
[Round "09"]
[TimeControl "180+2"]
[Date "2023.03.14"]
[WhiteClock "0:01:21"]
[BlackClock "0:00:49"]

1. Nf3 {[%clk 0:02:49]}  d5 {[%clk 0:02:58]} 2. g3 {[%clk 0:02:50]}  Nf6 {[%clk 0:02:49]} 3. c4 {[%clk 0:02:46]}  c6 {[%clk 0:02:46]} 4. b3 {[%clk 0:02:37]}  e6 {[%clk 0:02:46]} 5. Bb2 {[%clk 0:02:37]}  Be7 {[%clk 0:02:45]} 6. Bg2 {[%clk 0:02:36]}  O-O {[%clk 0:02:46]} 7. O-O {[%clk 0:02:35]}  b6 {[%clk 0:02:44]} 8. d3 {[%clk 0:02:34]}  Bb7 {[%clk 0:02:43]} 9. Nbd2 {[%clk 0:02:34]}  c5 {[%clk 0:02:43]} 10. Ne5 {[%clk 0:02:26]}  Nbd7 {[%clk 0:02:40]} 11. e3 {[%clk 0:02:07]}  Qc7 {[%clk 0:02:32]} 12. f4 {[%clk 0:02:05]}  dxc4 {[%clk 0:02:26]} 13. bxc4 {[%clk 0:02:02]}  Bxg2 {[%clk 0:02:23]} 14. Kxg2 {[%clk 0:02:02]}  Qb7+ {[%clk 0:02:11]} 15. Qf3 {[%clk 0:02:02]}  Qxf3+ {[%clk 0:02:10]} 16. Kxf3 {[%clk 0:02:03]}  Bd6 {[%clk 0:02:07]} 17. a4 {[%clk 0:01:57]}  h5 {[%clk 0:02:00]} 18. h3 {[%clk 0:01:53]}  Rfd8 {[%clk 0:01:56]} 19. Bc3 {[%clk 0:01:51]}  Bxe5 {[%clk 0:01:38]} 20. fxe5 {[%clk 0:01:49]}  Ne8 {[%clk 0:01:38]} 21. Ke2 {[%clk 0:01:44]}  g6 {[%clk 0:01:34]} 22. Ne4 {[%clk 0:01:38]}  Ng7 {[%clk 0:01:33]} 23. g4 {[%clk 0:01:37]}  hxg4 {[%clk 0:01:33]} 24. hxg4 {[%clk 0:01:37]}  Ne8 {[%clk 0:01:03]} 25. Rh1 {[%clk 0:01:34]}  f5 {[%clk 0:00:52]} 26. exf6 {[%clk 0:01:32]}  e5 {[%clk 0:00:49]} 27. Raf1 {[%clk 0:01:21]} 1-0


[Site "https://www.chess.com"]